fUST/lending_fUST_20241109
["ID","MTS","AMOUNT","RATE_DAILY","PERIOD"]
[341736708,1731166239834,-500.0,0.00022736,2]
[341736709,1731166239844,-348.23077697,0.00022736,2]
[341736710,1731166239853,-500.0,0.00022736,2]
[341736711,1731166239862,-359.45162605,0.00022736,2]
[341736712,1731166239871,-190.894692,0.00022736,7]
[341736713,1731166239880,-151.0,0.00022736,7]
[341736714,1731166239890,-505.97552978,0.00022736,2]
[341736715,1731166239899,-500.0,0.00022736,2]
[341736716,1731166239908,-502.66137345,0.00022736,2]
[341736718,1731166239918,-643.62435138,0.00022736,2]
[341736720,1731166239927,-500.0,0.00022736,2]
[341736722,1731166239939,-500.0,0.00022736,2]
[341736723,1731166239948,-500.0,0.00022736,2]
[341736724,1731166239958,-501.57928355,0.00022736,2]
[341736726,1731166239968,-502.42998683,0.00022736,2]
[341736727,1731166239977,-151.0,0.00022736,3]
[341736728,1731166239987,-514.55172765,0.00022736,2]
[341736730,1731166239997,-505.16650514,0.00022736,2]
[341736731,1731166240006,-189.440608,0.00022736,7]
[341736732,1731166240016,-500.0,0.00022736,2]
[341736733,1731166240025,-500.0,0.00022736,2]
[341736734,1731166240035,-500.0,0.00022736,2]
[341736735,1731166240044,-500.0,0.00022736,2]
[341736737,1731166240054,-500.0,0.00022736,2]
[341736738,1731166240063,-531.19748863,0.00022736,2]
[341736739,1731166240072,-151.0,0.00022736,7]
[341736741,1731166240081,-500.0,0.00022736,2]
[341736743,1731166240090,-500.0,0.00022736,2]
[341736745,1731166240100,-500.0,0.00022736,2]
[341736747,1731166240109,-503.87536501,0.00022736,2]
[341736749,1731166240118,-559.645527,0.00022736,7]
[341736751,1731166240127,-151.0,0.00022736,7]
[341736753,1731166240136,-151.0,0.00022736,7]
[341736755,1731166240146,-500.0,0.00022736,2]
[341736757,1731166240155,-306.17366826,0.00022736,2]
[341736759,1731166240164,-500.0,0.00022736,2]
[341736761,1731166240174,-559.645527,0.00022736,7]
[341736763,1731166240183,-374.026918,0.00022736,7]
[341736765,1731166240192,-528.19269926,0.00022736,2]
[341736767,1731166240201,-215.49538655,0.00022736,2]
[341736769,1731166240211,-374.026918,0.00022736,7]
[341736771,1731166240221,-151.0,0.00022736,7]
[341736773,1731166240230,-162.904945,0.00022736,7]
[341736775,1731166240239,-500.0,0.00022736,2]
[341736776,1731166240248,-500.0,0.00022736,2]
[341736778,1731166240258,-512.22114221,0.00022736,2]
[341736780,1731166240267,-166.86486162,0.00022736,2]
[341736789,1731166240362,-151.0,0.00022736,7]
[341736790,1731166240372,-151.0,0.00022736,7]
[341736791,1731166240382,-500.0,0.00022736,2]
[341736792,1731166240391,-500.0,0.00022736,2]
[341736793,1731166240401,-187.326536,0.00022736,7]
[341736794,1731166240410,-187.326536,0.00022736,7]
[341736795,1731166240419,-500.0,0.00022736,2]
[341736796,1731166240428,-502.9430145,0.00022736,2]
[341736797,1731166240438,-500.0,0.00022736,2]
[341736798,1731166240447,-500.0,0.00022736,2]
[341736799,1731166240456,-500.0,0.00022736,2]
[341736800,1731166240467,-173.77838457,0.00022736,2]
[341736801,1731166240476,-151.0,0.00022736,7]
[341736802,1731166240486,-151.0,0.00022736,7]
[341736803,1731166240495,-151.0,0.00022736,7]
[341736804,1731166240504,-151.0,0.00022736,7]
[341736805,1731166240513,-500.0,0.00022736,2]
[341736806,1731166240523,-500.0,0.00022736,2]
[341736807,1731166240532,-500.0,0.00022736,2]
[341736808,1731166240541,-500.0,0.00022736,2]
[341736809,1731166240550,-500.0,0.00022736,2]
[341736810,1731166240559,-500.0,0.00022736,2]
[341736811,1731166240568,-500.0,0.00022736,2]
[341736812,1731166240577,-500.0,0.00022739,2]
[341736813,1731166240586,-500.0,0.00022739,2]
[341736814,1731166240595,-1907.54,0.0002282,2]
[341736815,1731166240604,-500.0,0.0002282,2]
[341736816,1731166240613,-633.92,0.0002282,2]
[341736817,1731166240622,-500.0,0.0002282,2]
[341736818,1731166240631,-500.0,0.0002282,2]
[341736819,1731166240640,-500.0,0.0002282,2]
[341736820,1731166240649,-500.0,0.0002282,2]
[341736821,1731166240659,-500.0,0.00022821,2]
[341736822,1731166240668,-500.0,0.00022821,2]
[341736823,1731166240677,-500.0,0.00022821,2]
[341736824,1731166240688,-500.0,0.00022821,2]
[341736825,1731166240697,-151.0,0.00022821,7]
[341736826,1731166240707,-160.538414,0.00022821,7]
[341736827,1731166240716,-151.0,0.00022821,7]
[341736828,1731166240725,-151.0,0.00022821,7]
[341736829,1731166240734,-484.44,0.00022821,2]
[341736830,1731166240743,-500.0,0.00022821,2]
[341736831,1731166240753,-420.0,0.00022841,2]
[341736832,1731166240762,-500.0,0.0002301,2]
[341736833,1731166240771,-500.0,0.0002301,2]
[341736834,1731166240781,-500.0,0.0002301,2]
[341736835,1731166240790,-500.0,0.0002301,2]
[341736836,1731166240799,-151.0,0.0002301,7]
[341736837,1731166240809,-151.0,0.0002301,7]
[341736838,1731166240818,-504.31897831,0.0002301,2]
[341736839,1731166240827,-500.0,0.0002301,2]
[341736840,1731166240836,-500.0,0.0002301,2]
[341736841,1731166240845,-151.0,0.0002301,7]
[341736842,1731166240854,-500.0,0.0002301,2]
[341736843,1731166240864,-500.0,0.0002301,2]
[341736844,1731166240873,-151.0,0.0002301,3]
[341736845,1731166240882,-158.895813,0.0002301,7]
[341736846,1731166240891,-559.645527,0.0002301,7]
[341736847,1731166240900,-151.0,0.0002301,7]
[341736848,1731166240910,-559.645527,0.0002301,7]
[341736849,1731166240919,-374.026918,0.0002301,7]
[341736850,1731166240929,-374.026918,0.0002301,7]
[341736851,1731166240940,-500.0,0.0002301,2]
[341736852,1731166240949,-187.326536,0.0002301,7]
[341736853,1731166240959,-187.326536,0.0002301,7]
[341736854,1731166240969,-500.0,0.0002301,2]
[341736855,1731166240979,-263.329127,0.0002301,7]
[341736856,1731166240989,-500.0,0.0002301,2]
[341736857,1731166240998,-394.97,0.0002301,2]
[341736858,1731166241008,-500.0,0.0002301,2]
[341736859,1731166241017,-500.0,0.0002301,2]
[341736860,1731166241026,-500.0,0.0002301,2]
[341736861,1731166241035,-500.0,0.00023013,2]
[341736862,1731166241045,-500.0,0.00023013,2]
[341736863,1731166241054,-1907.54,0.00023094,2]
[341736864,1731166241063,-500.0,0.00023094,2]
[341736865,1731166241073,-633.92,0.00023094,2]
[341736866,1731166241083,-151.0,0.00023094,7]
[341736867,1731166241092,-500.0,0.00023094,2]
[341736868,1731166241102,-500.0,0.00023094,2]
[341736869,1731166241111,-500.0,0.00023094,2]
[341736870,1731166241120,-500.0,0.00023095,2]
[341736871,1731166241129,-316.5,0.00023095,2]
[341736872,1731166241139,-500.0,0.00023095,2]
[341736873,1731166241148,-500.0,0.00023095,2]
[341736874,1731166241157,-500.0,0.00023095,2]
[341736875,1731166241167,-895.83616073,0.00023199,2]
[341736876,1731166241176,-282.82587,0.00023248,2]
[341736877,1731166241186,-2662.7,0.00023269,2]
[341736878,1731166241195,-418.92832558,0.00023269,2]
[341736879,1731166241205,-200.22468848,0.00023269,2]
[341736880,1731166241214,-267.19420177,0.00023269,2]
[341736881,1731166241223,-151.0,0.0002327,7]
[341736882,1731166241232,-206.736819,0.0002327,7]
[341736883,1731166241241,-206.736819,0.0002327,7]
[341736884,1731166241252,-1468.23922,0.0002327,7]
[341736885,1731166241261,-160.422457,0.0002327,7]
[341736886,1731166241274,-151.0,0.0002327,7]
[341736887,1731166241284,-151.0,0.0002327,7]
[341736888,1731166241293,-500.0,0.00023271,2]
[341736889,1731166241302,-500.0,0.00023271,2]
[341736890,1731166241311,-506.56583498,0.00023271,2]
[341736891,1731166241321,-500.0,0.00023271,2]
[341736892,1731166241332,-151.0,0.00023271,7]
[341736893,1731166241343,-154.051806,0.00023271,7]
[341736894,1731166241354,-151.0,0.00023271,7]
[341736895,1731166241364,-271.231738,0.00023271,7]
[341736896,1731166241374,-271.231738,0.00023271,7]
[341736897,1731166241385,-151.0,0.00023271,7]
[341736898,1731166241395,-500.0,0.00023271,2]
[341736899,1731166241405,-559.645527,0.00023271,7]
[341736900,1731166241414,-151.0,0.00023271,7]
[341736901,1731166241423,-559.645527,0.00023271,7]
[341736902,1731166241432,-374.026918,0.00023271,7]
[341736903,1731166241442,-374.026918,0.00023271,7]
[341736904,1731166241451,-187.326536,0.00023271,7]
[341736905,1731166241460,-187.326536,0.00023271,7]
[341736906,1731166241469,-502.17679707,0.00023272,2]
[341736907,1731166241478,-501.19151732,0.00023272,2]
[341736908,1731166241487,-2662.7,0.00023283,2]
[341736909,1731166241496,-500.0,0.00023284,2]
[341736910,1731166241505,-500.0,0.00023284,2]
[341736911,1731166241516,-500.0,0.00023284,2]
[341736912,1731166241527,-500.0,0.00023284,2]
[341736913,1731166241539,-151.0,0.00023284,7]
[341736914,1731166241548,-151.0,0.00023284,7]
[341736915,1731166241558,-500.0,0.00023284,2]
[341736916,1731166241568,-500.0,0.00023284,2]
[341736917,1731166241589,-500.0,0.00023284,2]
[341736918,1731166241601,-500.0,0.00023284,2]
[341736919,1731166241611,-500.0,0.00023284,2]
[341736920,1731166241621,-500.0,0.00023284,2]
[341736921,1731166241632,-500.0,0.00023284,2]
[341736922,1731166241642,-500.0,0.00023284,2]
[341736923,1731166241652,-500.0,0.00023284,2]
[341736924,1731166241662,-500.0,0.00023287,2]
[341736925,1731166241672,-500.0,0.00023287,2]
[341736926,1731166241682,-3156.12,0.00023358,3]
[341736927,1731166241691,-1578.06,0.00023358,3]
[341736928,1731166241701,-789.02,0.00023358,3]
[341736929,1731166241710,-394.52,0.00023358,3]
[341736930,1731166241720,-151.0,0.00023358,7]
[341736931,1731166241729,-151.0,0.00023358,7]
[341736932,1731166241739,-1907.54,0.00023368,2]
[341736933,1731166241749,-500.0,0.00023368,2]
[341736934,1731166241758,-633.92,0.00023368,2]
[341736935,1731166241768,-500.0,0.00023368,2]
[341736936,1731166241777,-500.0,0.00023368,2]
[341736937,1731166241787,-500.0,0.00023368,2]
[341736938,1731166241797,-500.0,0.00023369,2]
[341736939,1731166241806,-500.0,0.00023369,2]
[341736940,1731166241816,-500.0,0.00023369,2]
[341736941,1731166241825,-547.6458971,0.00023369,2]
[341736942,1731166241836,-500.0,0.00023545,2]
[341736943,1731166241846,-354.7295095,0.00023558,2]
[341736944,1731166241855,-500.0,0.00023558,2]
[341736945,1731166241865,-500.0,0.00023558,2]
[341736946,1731166241874,-500.0,0.00023558,2]
[341736947,1731166241884,-205.906167,0.00023558,7]
[341736948,1731166241894,-151.0,0.00023558,7]
[341736949,1731166241903,-206.736819,0.00023558,7]
[341736950,1731166241912,-206.736819,0.00023558,7]
[341736951,1731166241922,-1468.23922,0.00023558,7]
[341736952,1731166241932,-151.0,0.00023558,7]
[341736953,1731166241941,-500.0,0.00023558,2]
[341736954,1731166241950,-559.645527,0.00023558,7]
[341736955,1731166241960,-196.99619,0.00023558,7]
[341736956,1731166241971,-559.645527,0.00023558,7]
[341736957,1731166241981,-374.026918,0.00023558,7]
[341736958,1731166241991,-374.026918,0.00023558,7]
[341736959,1731166242001,-500.0,0.00023558,2]
[341736960,1731166242011,-187.326536,0.00023558,7]
[341736961,1731166242021,-187.326536,0.00023558,7]
[341736962,1731166242032,-500.0,0.00023558,2]
[341736963,1731166242042,-500.0,0.00023558,2]
[341736964,1731166242052,-500.0,0.00023558,2]
[341736965,1731166242062,-500.0,0.00023558,2]
[341736966,1731166242073,-500.0,0.00023558,2]
[341736967,1731166242083,-500.0,0.00023561,2]
[341736968,1731166242093,-500.0,0.00023561,2]
[341736969,1731166242104,-153.21706322,0.00023617,2]
[341736970,1731166242114,-500.0,0.00023617,2]
[341736971,1731166242124,-500.0,0.00023617,2]
[341736972,1731166242133,-500.0,0.00023617,2]
[341736973,1731166242144,-500.0,0.00023617,2]
[341736974,1731166242153,-429.61273473,0.00023617,2]
[341736975,1731166242164,-1907.54,0.00023642,2]
[341736976,1731166242174,-500.0,0.00023642,2]
[341736977,1731166242183,-633.92,0.00023642,2]
[341736978,1731166242192,-500.0,0.00023642,2]
[341736979,1731166242203,-500.0,0.00023642,2]
[341736980,1731166242214,-500.0,0.00023643,2]
[341736981,1731166242223,-500.0,0.00023643,2]
[341736982,1731166242233,-500.0,0.00023643,2]
[341736983,1731166242242,-895.83616073,0.00023719,2]
[341736984,1731166242252,-2662.7,0.00023818,2]
[341736985,1731166242261,-500.0,0.00023819,2]
[341736986,1731166242274,-151.0,0.00023819,7]
[341736987,1731166242285,-271.231738,0.00023819,7]
[341736988,1731166242298,-271.231738,0.00023819,7]
[341736989,1731166242308,-151.0,0.00023819,7]
[341736990,1731166242318,-162.210968,0.00023819,7]
[341736992,1731166242328,-151.0,0.00023819,7]
[341736993,1731166242337,-233.239965,0.00023819,7]
[341736994,1731166242348,-500.0,0.00023832,2]
[341736996,1731166242357,-614.07700889,0.00023832,2]
[341736997,1731166242366,-500.0,0.00023832,2]
[341736998,1731166242375,-309.84936495,0.00023832,2]
[341736999,1731166242385,-500.0,0.00023832,2]
[341737000,1731166242394,-500.0,0.00023832,2]
[341737001,1731166242403,-500.0,0.00023832,2]
[341737002,1731166242412,-500.0,0.00023832,2]
[341737003,1731166242422,-500.0,0.00023832,2]
[341737004,1731166242432,-500.0,0.00023835,2]
[341737006,1731166242442,-500.0,0.00023835,2]
[341737007,1731166242451,-559.645527,0.00023862,7]
[341737008,1731166242460,-559.645527,0.00023862,7]
[341737009,1731166242470,-500.0,0.00023862,2]
[341737010,1731166242479,-554.49841929,0.00023862,2]
[341737011,1731166242489,-501.48903213,0.00023862,2]
[341737012,1731166242498,-500.0,0.00023894,2]
[341737013,1731166242508,-307.17705922,0.00023894,2]
[341737015,1731166242517,-1907.54,0.00023916,2]
[341737017,1731166242527,-500.0,0.00023916,2]
[341737018,1731166242536,-633.92,0.00023916,2]
[341737020,1731166242638,-500.0,0.00023916,2]
[341737023,1731166242662,-500.0,0.00023916,2]
[341737025,1731166242672,-526.82036076,0.00023917,2]
[341737027,1731166242682,-500.0,0.0002392,2]
[341737029,1731166242691,-381.54837724,0.00023921,2]
[341737031,1731166242700,-2151.17151006,0.0002395,2]
[341737033,1731166242710,-151.0,0.00023999,7]
[341737035,1731166242719,-290.889594,0.00023999,7]
[341737037,1731166242728,-374.026918,0.00023999,7]
[341737039,1731166242738,-374.026918,0.00023999,7]
[341737041,1731166242747,-187.326536,0.00023999,7]
[341737043,1731166242757,-187.326536,0.00023999,7]
[341737045,1731166242766,-2662.7,0.00023999,2]
[341737047,1731166242775,-2662.7,0.00023999,2]
[341737049,1731166242784,-151.0,0.00024,7]
[341737051,1731166242793,-151.0,0.00024,7]
[341737053,1731166242802,-271.231738,0.00024,7]
[341737054,1731166242812,-271.231738,0.00024,7]
[341737057,1731166242825,-151.0,0.00024,7]
[341737059,1731166242834,-206.736819,0.00024,7]
[341737061,1731166242843,-206.736819,0.00024,7]
[341737063,1731166242852,-1468.23922,0.00024,7]
[341737065,1731166242863,-151.0,0.00024,7]
[341737067,1731166242872,-501.726989,0.00024056,2]
[341737069,1731166242882,-500.0,0.00024066,2]
[341737071,1731166242891,-500.0,0.00024066,2]
[341737073,1731166242901,-500.0,0.00024066,2]
[341737075,1731166242910,-500.0,0.00024066,2]
[341737077,1731166242919,-635.5,0.00024066,2]
[341737079,1731166242928,-500.0,0.00024066,2]
[341737081,1731166242938,-500.0,0.00024066,2]
[341737083,1731166242948,-559.645527,0.00024066,7]
[341737085,1731166242957,-559.645527,0.00024066,7]
[341737087,1731166242968,-500.0,0.00024093,2]
[341737089,1731166242977,-2662.7,0.00024095,2]
[341737091,1731166242987,-151.0,0.00024096,7]
[341737093,1731166242996,-151.0,0.00024096,7]
[341737095,1731166243006,-374.026918,0.00024096,7]
[341737097,1731166243015,-374.026918,0.00024096,7]
[341737099,1731166243024,-187.326536,0.00024096,7]
[341737101,1731166243033,-187.326536,0.00024096,7]
[341737103,1731166243043,-500.0,0.00024106,2]
[341737105,1731166243053,-500.0,0.00024106,2]
[341737107,1731166243062,-153.413988,0.00024106,7]
[341737109,1731166243073,-206.736819,0.00024106,7]
[341737111,1731166243083,-206.736819,0.00024106,7]
[341737113,1731166243092,-1468.23922,0.00024106,7]
[341737116,1731166243101,-500.0,0.00024106,2]
[341737118,1731166243111,-500.0,0.00024106,2]
[341737120,1731166243120,-500.0,0.00024106,2]
[341737121,1731166243129,-578.06109041,0.00024106,2]
[341737124,1731166243138,-500.0,0.00024106,2]
[341737125,1731166243147,-500.0,0.00024109,2]
[341737127,1731166243157,-500.0,0.00024109,2]
[341737130,1731166243167,-1907.54,0.0002419,2]
[341737132,1731166243177,-500.0,0.0002419,2]
[341737134,1731166243188,-633.92,0.0002419,2]
[341737136,1731166243197,-500.0,0.0002419,2]
[341737138,1731166243207,-500.0,0.0002419,2]
[341737139,1731166243216,-151.0,0.00024191,7]
[341737141,1731166243225,-500.0,0.00024219,2]
[341737143,1731166243235,-151.0,0.00024219,7]
[341737145,1731166243244,-271.231738,0.00024219,7]
[341737147,1731166243254,-271.231738,0.00024219,7]
[341737149,1731166243264,-559.645527,0.00024219,7]
[341737151,1731166243277,-559.645527,0.00024219,7]
[341737153,1731166243287,-2662.7,0.00024339,2]
[341737155,1731166243297,-500.0,0.0002434,2]
[341737157,1731166243307,-635.5,0.0002434,2]
[341737159,1731166243318,-500.0,0.0002434,2]
[341737161,1731166243329,-500.0,0.00024341,2]
[341737163,1731166243339,-500.0,0.00024367,2]
[341737165,1731166243350,-151.0,0.00024367,7]
[341737167,1731166243360,-374.026918,0.00024367,7]
[341737169,1731166243370,-374.026918,0.00024367,7]
[341737171,1731166243379,-187.326536,0.00024367,7]
[341737173,1731166243388,-187.326536,0.00024367,7]
[341737175,1731166243397,-503.13850198,0.0002438,2]
[341737177,1731166243408,-500.0,0.0002438,2]
[341737179,1731166243417,-151.0,0.0002438,7]
[341737181,1731166243427,-500.0,0.0002438,2]
[341737183,1731166243438,-500.0,0.0002438,2]
[341737185,1731166243447,-500.0,0.0002438,2]
[341737187,1731166243457,-500.0,0.00024383,2]
[341737189,1731166243468,-500.0,0.00024383,2]
[341737191,1731166243478,-206.736819,0.00024391,7]
[341737193,1731166243487,-206.736819,0.00024391,7]
[341737195,1731166243496,-1468.23922,0.00024391,7]
[341737197,1731166243506,-1907.54,0.00024464,2]
[341737199,1731166243515,-500.0,0.00024464,2]
[341737200,1731166243526,-633.92,0.00024464,2]
[341737201,1731166243535,-2662.7,0.00024464,2]
[341737202,1731166243544,-156.26955617,0.00024464,2]
[341737203,1731166243554,-500.0,0.00024464,2]
[341737204,1731166243564,-559.645527,0.00024465,7]
[341737205,1731166243573,-559.645527,0.00024465,7]
[341737206,1731166243583,-151.0,0.00024465,7]
[341737207,1731166243592,-500.0,0.00024614,2]
[341737208,1731166243602,-635.5,0.00024614,2]
[341737209,1731166243611,-500.0,0.00024614,2]
[341737210,1731166243620,-500.0,0.00024616,2]
[341737211,1731166243630,-500.0,0.00024616,2]
[341737212,1731166243639,-151.0,0.00024654,7]
[341737214,1731166243653,-271.231738,0.00024654,7]
[341737215,1731166243666,-271.231738,0.00024654,7]
[341737217,1731166243679,-500.0,0.00024654,2]
[341737218,1731166243693,-343.40332121,0.00024654,2]
[341737219,1731166243704,-500.0,0.00024654,2]
[341737220,1731166243715,-500.0,0.00024657,2]
[341737221,1731166243727,-500.0,0.00024657,2]
[341737223,1731166243740,-151.0,0.00024658,7]
[341737224,1731166243751,-151.0,0.00024658,7]
[341737225,1731166243764,-151.0,0.00024658,7]
[341737226,1731166243776,-151.0,0.00024658,7]
[341737227,1731166243789,-151.0,0.00024658,7]
[341737228,1731166243802,-252.92253396,0.00024658,2]
[341737229,1731166243814,-500.0,0.00024658,2]
[341737230,1731166243826,-473.40465277,0.00024658,2]
[341737231,1731166243839,-500.0,0.00024658,2]
[341737232,1731166243852,-374.026918,0.00024662,7]
[341737233,1731166243864,-374.026918,0.00024662,7]
[341737234,1731166243875,-187.326536,0.00024662,7]
[341737235,1731166243886,-187.326536,0.00024662,7]
[341737236,1731166243897,-1907.54,0.00024738,2]
[341737237,1731166243910,-500.0,0.00024738,2]
[341737238,1731166243922,-633.92,0.00024738,2]
[341737239,1731166243934,-500.0,0.00024738,2]
[341737240,1731166243946,-151.0,0.00024739,7]
[341737241,1731166243956,-587.0,0.00024846,2]
[341737242,1731166243966,-2662.7,0.00024887,2]
[341737243,1731166243977,-500.0,0.00024888,2]
[341737244,1731166243989,-635.5,0.00024888,2]
[341737245,1731166244000,-500.0,0.00024888,2]
[341737246,1731166244012,-559.645527,0.00024915,7]
[341737247,1731166244024,-559.645527,0.00024915,7]
[341737248,1731166244036,-151.0,0.00024928,7]
[341737249,1731166244048,-206.736819,0.00024928,7]
[341737250,1731166244059,-206.736819,0.00024928,7]
[341737251,1731166244072,-1468.23922,0.00024928,7]
[341737252,1731166244085,-151.0,0.00024928,7]
[341737253,1731166244098,-253.68,0.00024928,2]
[341737254,1731166244110,-480.87757578,0.00024928,2]
[341737255,1731166244122,-500.0,0.00024931,2]
[341737256,1731166244132,-500.0,0.00024931,2]
[341737257,1731166244142,-1000.0,0.00024987,2]
[341737258,1731166244152,-4975.53747565,0.00025,2]
[341737259,1731166244162,-1907.54,0.00025012,2]
[341737260,1731166244175,-500.0,0.00025012,2]
[341737261,1731166244188,-633.92,0.00025012,2]
[341737262,1731166244201,-500.0,0.00025012,2]
[341737263,1731166244213,-10636.50915305,0.0002509,2]
[341737264,1731166244225,-500.0,0.00025162,2]
[341737265,1731166244235,-635.5,0.00025162,2]
[341737266,1731166244245,-500.0,0.00025162,2]
[341737267,1731166244256,-2662.7,0.00025201,2]
[341737268,1731166244267,-151.0,0.00025202,7]
[341737269,1731166244282,-271.231738,0.00025202,7]
[341737270,1731166244294,-271.231738,0.00025202,7]
[341737271,1731166244304,-446.79326101,0.00025205,2]
[341737272,1731166244315,-500.0,0.00025205,2]
[341737273,1731166244325,-500.0,0.00025264,2]
[341737274,1731166244336,-1907.54,0.00025286,2]
[341737275,1731166244348,-500.0,0.00025286,2]
[341737276,1731166244359,-633.92,0.00025286,2]
[341737277,1731166244369,-500.0,0.00025286,2]
[341737278,1731166244379,-374.026918,0.00025287,7]
[341737279,1731166244390,-374.026918,0.00025287,7]
[341737280,1731166244400,-187.326536,0.00025287,7]
[341737281,1731166244412,-187.326536,0.00025287,7]
[341737282,1731166244422,-500.0,0.00025345,2]
[341737283,1731166244435,-500.0,0.00025345,2]
[341737284,1731166244446,-500.0,0.00025345,2]
[341737285,1731166244457,-500.0,0.00025436,2]
[341737286,1731166244467,-635.5,0.00025436,2]
[341737287,1731166244478,-500.0,0.00025436,2]
[341737288,1731166244488,-151.0,0.00025436,7]
[341737289,1731166244499,-155.337223,0.00025476,7]
[341737290,1731166244510,-151.0,0.00025476,7]
[341737291,1731166244521,-151.0,0.00025476,7]
[341737292,1731166244532,-206.736819,0.00025476,7]
[341737293,1731166244542,-206.736819,0.00025476,7]
[341737294,1731166244553,-1468.23922,0.00025476,7]
[341737295,1731166244564,-500.0,0.00025479,2]
[341737296,1731166244574,-1907.54,0.0002556,2]
[341737297,1731166244586,-500.0,0.0002556,2]
[341737298,1731166244597,-633.92,0.0002556,2]
[341737299,1731166244608,-500.0,0.0002556,2]
[341737300,1731166244619,-500.86409177,0.00025589,2]
[341737301,1731166244630,-2662.7,0.00025709,2]
[341737302,1731166244641,-591.4,0.0002571,2]
[341737303,1731166244652,-635.5,0.0002571,2]
[341737304,1731166244663,-500.0,0.0002571,2]
[341737305,1731166244674,-398.86341476,0.00025753,2]
[341737306,1731166244688,-1907.54,0.00025834,2]
[341737307,1731166244699,-500.0,0.00025834,2]
[341737308,1731166244711,-633.92,0.00025834,2]
[341737309,1731166244721,-551.16974633,0.00025834,2]
[341737310,1731166244732,-180.276,0.00025967,11]
[341737311,1731166244743,-635.5,0.00025984,2]
[341737312,1731166244755,-293.01,0.00025986,2]
[341737313,1731166244766,-1000.0,0.00025986,2]
[341737314,1731166244778,-151.0,0.0002601,7]
[341737315,1731166244789,-271.231738,0.0002601,7]
[341737316,1731166244800,-271.231738,0.0002601,7]
[341737317,1731166244811,-180.298918,0.0002601,7]
[341737318,1731166244822,-374.026918,0.0002601,7]
[341737319,1731166244942,-374.02692,0.0002601,7]
[341737320,1731166244954,-187.326536,0.0002601,7]
[341737321,1731166244964,-187.326541,0.0002601,7]
[341737322,1731166244974,-1907.54,0.00026108,2]
[341737323,1731166244985,-286.48428046,0.00026108,2]
[341737324,1731166244995,-633.92,0.00026108,2]
[341737325,1731166245004,-1130.0,0.00026196,2]
[341737326,1731166245014,-529.0,0.00026196,2]
[341737327,1731166245037,-2383.0,0.00026196,2]
[341737328,1731166245047,-635.5,0.00026258,2]
[341737329,1731166245057,-2662.7,0.00026297,2]
[341737330,1731166245067,-151.0,0.00026298,7]
[341737331,1731166245077,-206.736819,0.00026298,7]
[341737332,1731166245087,-1468.23922,0.00026298,7]
[341737333,1731166245096,-206.736819,0.00026298,7]
[341737334,1731166245106,-1468.23922,0.00026298,7]
[341737335,1731166245116,-1113.46,0.000263,14]
[341737336,1731166245125,-1239.42,0.000263,14]
[341737337,1731166245135,-1907.54,0.00026382,2]
[341737338,1731166245145,-633.92,0.00026382,2]
[341737339,1731166245154,-151.0,0.00026464,7]
[341737340,1731166245164,-635.5,0.00026532,2]